Cogmind - Beta 17.1 @@@ ROGUE MODE // 2026.08.27 @ 15:25:19 Player: Bsuter Result: Destroyed by D-53 Grenadier with Mini Grenade Launcher Performance ------------- Evolutions (0) 0 Regions Visited (2) 400 Robots Destroyed (21) 105 Value Destroyed (373) 373 Prototype IDs (0) 0 Alien Tech Used (0) 0 Bonus (0) 0 TOTAL SCORE: 878 Bonus ------- None Cogmind --------- Core Integrity 0/250 Matter 300/300 Energy 98/100 System Corruption 13% Temperature Cool (2) Movement Walking (120) Location -10/Mines Parts ------- > --- POWER (1) -------- (None) > --- PROPULSION (2) --- Aluminum Leg > --- UTILITY (2) ------ Small Storage Unit Targeting Computer > --- WEAPON (2) ------- Light Assault Rifle > --- INVENTORY (8) ---- Ion Engine Aluminum Leg Wheel Compact Wheel Compact Wheel Sensor Array Signal Interpreter Mining Laser Peak State ------------ > --- POWER ------------ Ion Engine > --- PROPULSION ------- Aluminum Leg Wheel > --- UTILITY ---------- Small Storage Unit Seismic Detector > --- WEAPON ----------- Small Laser Particle Gun > --- INVENTORY -------- Light Ion Engine Compact Wheel Compact Wheel Targeting Computer Medium Laser Light Assault Rifle [Rating: 8] Favorites ----------- Power Ion Engine Engine Ion Engine Propulsion Aluminum Leg Leg Aluminum Leg Wheel Wheel Utility Small Storage Unit Device Seismic Detector Storage Small Storage Unit Processor Targeting Computer Weapon Medium Laser Energy Gun Medium Laser Ballistic Gun Light Assault Rifle Special Weapon Mining Laser Build | -11 -10 -10 ------- Run | Yrd Mat Min Slots Evolved . | . . . Power . | . . . Propulsion . | . . . Utility . | . . . Weapon . | . . . Parts Attached 18 | 7 11 . Power 3 | 1 2 . Engine 3 | 1 2 . Core . | . . . Reactor . | . . . Propulsion 5 | 2 3 . Treads . | . . . Leg 4 | 2 2 . Wheel 1 | . 1 . Hover . | . . . Flight . | . . . Utility 3 | 2 1 . Device 1 | 1 . . Storage 1 | 1 . . Processor 1 | . 1 . Hackware . | . . . Protection . | . . . Artifact . | . . . Weapon 7 | 2 5 . Energy Gun 4 | 2 2 . Energy Cannon . | . . . Ballistic Gun 1 | . 1 . Ballistic Cannon . | . . . Launcher . | . . . Special Weapon 2 | . 2 . Impact Weapon . | . . . Slashing Weapon . | . . . Piercing Weapon . | . . . Special Melee Weapon . | . . . Unidentified Prototypes . | . . . Parts Lost 10 | . 7 3 Power 2 | . 1 1 Propulsion 2 | . 1 1 Utility 1 | . 1 . Weapon 5 | . 4 1 Highest Loss Streak 3 | . 3 3 To Critical Strikes . | . . . Average Backups 5 | 2 5 8 Power 1 | . 1 1 Propulsion 3 | 1 3 4 Utility . | . . 2 Weapon 1 | . 1 1 Tool/Special . | . . . Unused Backups 6 | . 1 5 Power 1 | . . 1 Propulsion 3 | . 1 2 Utility 2 | . . 2 Weapon . | . . . Tool/Special . | . . . Average Slot Usage (%) 99 | . 99 100 Engine 13 | . 13 14 Leg 24 | . 24 28 Wheel 3 | . 3 . Device 7 | . 9 . Storage 14 | . 14 14 Processor 6 | . 4 14 Energy Gun 19 | . 20 14 Ballistic Gun 7 | . 5 14 Special Weapon 1 | . 1 . Peak Build Rating 8 | 7 8 7 Average Rating 6 | 5 7 6 On Entrance 4 | . 7 7 Avg Prop Armor Cover (%) 9 | . 9 . Naked Turns . | . . . Heaviest Build 15 | 13 15 13 Greatest Support 20 | 20 20 20 Greatest Overweight (x) 1 | . 1 . Average Overweight (x) . | . . . Largest Inventory Capacity 8 | 8 8 8 Average Capacity 7 | 7 8 8 Most Carried 8 | 4 8 8 Average Carried 5 | 2 5 8 Final Capacity 8 | 8 8 8 Final Carried 8 | 4 8 8 Class Distribution -------------------- 100% | Mutant Dominant Class ---------------- Mutant | -10/Materials Mutant | -10/Mines Resources | -11 -10 -10 ----------- Run | Yrd Mat Min Matter Collected 477 | 270 157 50 Remotely . | . . . Salvage Created 765 | 201 564 . Parts 34 | 14 20 . Haulers Intercepted . | . . . Recyclers Shooed 2 | 1 1 . Parts Field Recycled . | . . . Retrieved Matter . | . . . Parts Self-Destructed . | . . . Prevented . | . . . Parts Restored . | . . . Kills | -11 -10 -10 ------- Run | Yrd Mat Min Combat Hostiles Destroyed 9 | . 9 . Guns 8 | . 8 . Cannons 1 | . 1 . Classes Destroyed 6 | 2 4 . Worker 1 | . 1 . Tunneler 6 | 5 1 . Recycler 3 | 1 2 . Watcher 2 | . 2 . Swarmer 3 | . 3 . Grunt 6 | . 6 . Best Kill Streak 4 | 3 4 . Combat Bots Only 3 | . 3 . Max Kills in Single Turn 2 | 1 2 . Gunslinging 1 | . 1 . Exploded . | . . . Melee . | . . . Uniques/NPCs Destroyed . | . . . Combat | -11 -10 -10 -------- Run | Yrd Mat Min Hostile Shots Fired 73 | . 65 8 Missed 22 | . 22 . Hits 51 | . 43 8 Projectile 51 | . 43 8 AOE 8 | . . 8 Critical Strikes 1 | . 1 . Damage Taken 1159 | . 869 290 Core 251 | . 137 114 Absorbed by Shields . | . . . Core Remaining (%) 100 | 100 . . Volleys Fired 76 | 12 61 3 Largest 2 | 2 2 2 Hottest 140 | 90 140 70 Shots Fired 147 | 24 116 7 Gun 139 | 24 108 7 Cannon . | . . . Launcher . | . . . Special 8 | . 8 . Kinetic 17 | . 14 3 Thermal 91 | 12 75 4 Explosive . | . . . Electromagnetic 39 | 12 27 . Robot Hit Streak 13 | 5 13 3 Robot Miss Streak 5 | 3 5 1 Penetration Max . | . . . Secondary Targets 1 | . 1 . Max Gunslinging Chain 1 | . 1 . Shots Hit Robots 68 | 13 51 4 Core Hits 28 | 7 21 . Critical Kills . | . . . Critical Parts Destroyed . | . . . Critical Strikes 1 | . 1 . Burn 1 | . 1 . Melee Attacks . | . . . Impact . | . . . Slashing . | . . . Piercing . | . . . Sneak Attacks . | . . . Combat Hostiles . | . . . Follow-up Attacks . | . . . Damage Inflicted 848 | 165 646 37 Guns 824 | 165 622 37 Cannons . | . . . Explosions . | . . . Melee . | . . . Ramming . | . . . Kinetic 38 | . 14 24 Thermal 515 | 49 453 13 Explosive . | . . . Electromagnetic 295 | 116 179 . Impact . | . . . Slashing . | . . . Piercing . | . . . Highest Corruption 13 | . 13 13 Average Corruption 10 | . 9 13 Corruption Purged . | . . . Corruption Blocked . | . . . Effects 44 | . 36 8 Message Errors 16 | . 12 4 Matter Fused 9 | . 8 1 Heat Flow Errors 5 | . 4 1 Energy Discharges 5 | . 4 1 Parts Fused 1 | . 1 . Data Loss (minor) 2 | . 2 . Data Loss (major) 1 | . 1 . Misfires 2 | . 1 1 Weapon Failures 3 | . 3 . Overload Shots . | . . . Overflow Damage . | . . . Projectiles . | . . . Explosions . | . . . Melee . | . . . Knockbacks . | . . . Impact . | . . . Kinetic . | . . . Secondary . | . . . Self-Inflicted Damage . | . . . Shots . | . . . Rammed . | . . . Targets Rammed . | . . . Kicked . | . . . Crushed . | . . . Highest Temperature 412 | 120 412 198 Average Temperature 100 | 48 112 62 Received Heat Transfer 180 | . 180 . Effects 3 | . 3 . Shutdowns 1 | . 1 . Energy Bleed 2 | . 2 . Siege Activations . | . . . Martial Activations . | . . . Shielding Activations . | . . . Robots Disrupted . | . . . Combat Hostiles . | . . . Robots Corrupted . | . . . Combat Hostiles . | . . . Parts Fried 2 | 2 . . Impact Corruptions . | . . . Robots Melted . | . . . Combat Hostiles . | . . . Parts Melted 3 | . 3 . Heat Transferred 1436 | 148 1251 37 Parts Sabotaged . | . . . Parts Stolen . | . . . Parts Stripped . | . . . Power Chain Reactions . | . . . Alert | -11 -10 -10 ------- Run | Yrd Mat Min Maximum Alert Level . | . . . Low Security (%) 100 | 100 100 100 Level 1 . | . . . Level 2 . | . . . Level 3 . | . . . Level 4 . | . . . Level 5 . | . . . High Security . | . . . Max Security . | . . . Peak Influence 90 | 15 90 . Initial . | . . . Average 15 | 2 20 . Influence Increases 364 | 30 334 . Destroy 0b10 Robot/C 180 | . 180 . Destroy 0b10 Robot/NC 60 | 30 30 . Destroy Leader 44 | . 44 . Successful Hack 31 | . 31 . Disable Machine 30 | . 30 . Destroy Structure 4 | . 4 . Lose Combat Pursuer 15 | . 15 . Influence Decreases 364 | 30 334 . Time Decay 299 | 30 269 . Lost Part 65 | . 65 . Squads Dispatched 1 | . 1 . Investigation 1 | . 1 . Extermination . | . . . Reinforcement . | . . . Assault . | . . . Garrison . | . . . Intercept . | . . . Searches Triggered . | . . . Construction Impeded . | . . . Haulers Reinforced . | . . . Active Scanning Responses . | . . . Cargo Convoy Interrupts . | . . . Stealth | -11 -10 -10 --------- Run | Yrd Mat Min Distress Signals 1 | . 1 . Communications Jammed . | . . . Distress Signals . | . . . Times Spotted 18 | . 16 2 Peak Tracking Total 4 | . 4 2 Tactical Retreats 1 | . 1 . Traps | -11 -10 -10 ------- Run | Yrd Mat Min Traps Triggered 1 | . 1 . Indirectly . | . . . Trap Hack Attempts . | . . . Triggered . | . . . Disarmed . | . . . Reprogrammed . | . . . Reused . | . . . Traps Extracted . | . . . Installed . | . . . Triggered . | . . . Machines | -11 -10 -10 ---------- Run | Yrd Mat Min Machines Disabled 2 | . 2 . Max in Single Turn 1 | . 1 . Machines Repaired . | . . . Machines Dismantled . | . . . Machines Sabotaged . | . . . Overloaded Fab Kills . | . . . Hacking | -11 -10 -10 --------- Run | Yrd Mat Min Machines Accessed 5 | . 5 . Terminals 5 | . 5 . Fabricators . | . . . Repair Stations . | . . . Recycling Units . | . . . Scanalyzers . | . . . Garrison Access . | . . . Total Hacks 19 | . 19 . Successful 10 | . 10 . Failed 9 | . 9 . Catastrophic 2 | . 2 . Database Lockouts . | . . . Manual 8 | . 8 . Terminals 19 | . 19 . Fabricators . | . . . Repair Stations . | . . . Recycling Units . | . . . Scanalyzers . | . . . Garrison Access . | . . . Terminal Hacks 10 | . 10 . Record 2 | . 2 . Branch Access Points 1 | . 1 . Terminal Index 1 | . 1 . Alert Level 2 | . 2 . Dispatch Records 1 | . 1 . Investigation Status 1 | . 1 . Zone Layout 2 | . 2 . Fabricator Hacks . | . . . Repair Station Hacks . | . . . Recycling Unit Hacks . | . . . Scanalyzer . | . . . Garrison Access Hacks . | . . . Unauthorized Hacks . | . . . Terminals . | . . . Fabricators . | . . . Repair Stations . | . . . Recycling Units . | . . . Scanalyzers . | . . . Garrison Access . | . . . Data Cores Recovered . | . . . Used . | . . . Hacking Detections 5 | . 5 . Full Trace Events 1 | . 1 . Feedback Events 1 | . 1 . Corruption 1 | . 1 . Feedback Blocked . | . . . Robot Schematics Acquired . | . . . Robots Built . | . . . Authchips . | . . . Time . | . . . Total Robot Build Rating . | . . . Part Schematics Acquired . | . . . Parts Built . | . . . Authchips . | . . . Time . | . . . Total Part Build Rating . | . . . Part Studies Acquired . | . . . Parts Repaired . | . . . Time . | . . . Parts Recycled . | . . . Recycled Matter . | . . . Retrieved Matter . | . . . Retrieved Components . | . . . Parts Scanalyzed . | . . . Part Schematics Acquired . | . . . Parts Damaged . | . . . Bothacking | -11 -10 -10 ------------ Run | Yrd Mat Min Used RIF Installer . | . . . Robots Hacked . | . . . Non-combat . | . . . Combat . | . . . Robot Hacks Applied . | . . . Relay Couplers Released . | . . . Fabnet Peak Effective % . | . . . Robots Rewired . | . . . Allies Hacked . | . . . Hacks Repelled . | . . . Allies | -11 -10 -10 -------- Run | Yrd Mat Min Total Allies . | . . . Largest Group . | . . . Highest-Rated Group . | . . . Highest-Rated Ally . | . . . Total Orders . | . . . Ally Attacks . | . . . Total Damage . | . . . Kills . | . . . Allies Corrupted . | . . . Allies Melted . | . . . Intel | -11 -10 -10 ------- Run | Yrd Mat Min Active Infowar (turns) 729 | 22 707 . Seismic 729 | 22 707 . Robot Analysis Total . | . . . Derelict Logs Recovered . | . . . Drone Launches . | . . . Drone Recoveries . | . . . Exploration | -11 -10 -10 ------------- Run | Yrd Mat Min Turns Passed 1477 | 171 1081 225 Spaces Moved 923 | 101 641 181 Core 4 | 4 . . Treads . | . . . Legs 677 | 97 399 181 Wheels 242 | . 242 . Hover . | . . . Flight . | . . . Fastest Speed 50 | 50 95 120 Average Speed 113 | 117 110 120 Slowest Speed 190 | 120 190 120 Overloaded Moves . | . . . Propulsion Burnouts . | . . . Robots Hopped . | . . . Potential Cave-ins . | . . . Cave-ins Triggered 1 | . 1 . Exploration Rate (%) 38 | 5 74 35 Regions Visited 2 Branch Regions 1 Pre-discovered Areas . | . . . Known Exits Taken 1 | . 1 . Unknown Exits Taken 1 | 1 . . Scrap Searched . | . . . Spaces Dug 4 | . 4 . Terrain Destroyed 5 | . 5 . Melee . | . . . Projectile 5 | . 5 . AOE . | . . . Terrain Rammed . | . . . Walls Destroyed . | . . . Machines Disabled . | . . . Actions | -11 -10 -10 --------- Run | Yrd Mat Min Total 1188 | 126 878 184 Wait 152 | 3 149 . Move 921 | 100 640 181 Hop . | . . . Pick Up 15 | 4 11 . Fast Attach 7 | 7 . . Attach 7 | . 7 . Detach . | . . . Swap 8 | . 8 . Drop 2 | . 2 . Fire 76 | 12 61 3 Melee . | . . . Ram . | . . . Kick . | . . . Crush . | . . . Escape Stasis . | . . . Rewire . | . . . Trap . | . . . Miscellaneous . | . . . Route ------- -11/Scrapyard -10/Materials (discovered 5 exits: [*Mat x3] / *Min x2) -10/Mines History --------- Turn | Location | Event 2 | -11/Scrapyard | Met Revision 17 6 | -11/Scrapyard | Discovered new exit (range 16) 172 | -11/Scrapyard | Entered Materials 303 | -10/Materials | Build established: Mutant 309 | -10/Materials | Discovered new exit (range 12) 309 | -10/Materials | Discovered new exit (range 17) 312 | -10/Materials | Identified exit to Mines 429 | -10/Materials | Crushed by falling debris 446 | -10/Materials | Discovered new exit (range 15) 460 | -10/Materials | Lost 3 parts (1p1n1w) 490 | -10/Materials | Discovered new exit (range 15) 880 | -10/Materials | Core integrity fell below 50% 880 | -10/Materials | System corruption reached 10% 1253 | -10/Materials | Entered Mines 1296 | -10/Mines | Assembled infested the area 1476 | -10/Mines | Core integrity fell below 20% 1478 | -10/Mines | Destroyed by D-53 Grenadier with Mini Grenade Launcher Last Messages --------------- 01367_ 4C|WC&SV3=OOZDJTD4VJM>N R4X5 01466_ Acquired 50 matter. 01468_ U-05 Engineer lays Concrete. 01469_ The unstable cave ceiling collapses. 01470_ U-05 Engineer lays Concrete. 01470_ Aluminum Leg destroyed. 01471_ The unstable cave ceiling collapses. 01471_ U-05 Engineer lays Concrete. 01472_ The unstable cave ceiling collapses. 01472_ U-05 Engineer lays Concrete. 01476_ Ion Engine destroyed. 01477_ U-05 Engineer lays Concrete. 01478_ The unstable cave ceiling collapses. 01478_ U-05 Engineer builds a Wall. 01478_ Med. Laser destroyed. Map ----- +----------------------------------------------------+ | #??# #???# #????? | | ### #??# #???# #????? | | #?# #??# #???# #????? | | #?# #### ##### ##????? | | ##?# ### ##?????? | | ???# #?# ##?????? | | ???######## ### #?????? | | ??????????# #?????? | | ??????????# ##?????? | | ??????????######## ###??????? | | ???????????????### ##????????? | | ??????????????## #?????????? | | ?????????????## ##?????????? | | ????????????## ###??????????? | | ????????????# #####????????????? | | ????????????# #????????????????? | | ????????????## #????????????????? | | ????????# ##### #????????????????? | | ????????# #???########?###?? | | ????????####### #??## ## ##? | | ??????????????# #?## #? | | ????????####### ### #? | | ???????## r # #?? | | ???????# ## #??? | | ???????# ####### < #???? | | ???????# #?????# @ #???? | | ???????# #?????# d #???? | | ???????# #?????# # #???? | | ???????## ##?????# ### #d #???? | | ????????###??????? #? # #??? | | ?????????????????? # # # #??? | | ?????????????????? ### u# ??? | | ?????????????????? ?? ## #?? | | ?????????????????? #?? ? ? ?? | | ?????????????????? ??? ? ? | | ?????????????????? ??? # ? | | ????????????????? ??? ?? ?? | | ????????????????? ??? ???? | | ????????????????????????# ###????? | | ????????????????????????? ???????? | | ????????????????????????? ???????? | | ??????????????????????????????????? | | ??????????????????????????????????? | | ??????????????????????????????????? | | ??????????????????????????????????? | | ??????????????????????????????????? | | ??????????????????????????????????? | | ??????????????????????????????????? | | ??????????????????????????????????? | | ??????????????????????????????????? | +----------------------------------------------------+ Best States ------------- Heat Dissipation 25 Energy Generation 10 Energy Capacity 250 Matter Stores 300 Matter Capacity 300 Sight Range 16 Terrain Scan Density 10 Evasion (%) 55 Targeting Accuracy 5 Item Schematics ----------------- None Robot Schematics ------------------ None Fabricated ------------ Nothing Repaired ---------- Nothing Studied --------- None Alien Tech Used ----------------- None Achievements -------------- Unlikely Earthworm Challenges ------------ None Game ------ Seed RapidPortableField Manual? 0 Play Time 00:23:33 Cumulative 6.7 hours Start 2026.08.27 @ 15:01:30 End 2026.08.27 @ 15:25:19 Sessions 1 Manual Loads 0 Difficulty Rogue Special Mode None Game No. 9 Rogue 9 Adventurer 0 Explorer 0 Win Type - Total 0 Types 0/0/0/0/0/0/0/0/0/0 Lore% 3 Gallery% 10 Achievement% 10 Wizard Run 0 Options --------- Layout 1 ASCII 0 Keyboard 1 Movement Arrows Keybinds 1 Fullscreen 2 Font 36/Smallcaps Map View 50x40 Zoom Use 0% Tactical HUD 1 Map Filters NONE Filters NONE Steam 1 RUN: 6864c74d-84dd-4b59-8ee7-6585faf092db